fUSD/lending_fUSD_20240104
["ID","MTS","AMOUNT","RATE_DAILY","PERIOD"]
[310178399,1704390648949,-500.0,0.0003315,2]
[310178400,1704390648959,-500.0,0.0003315,2]
[310178401,1704390648970,-500.0,0.0003315,2]
[310178402,1704390648980,-500.0,0.0003315,2]
[310178403,1704390648989,-500.0,0.0003315,2]
[310178404,1704390648999,-500.0,0.0003315,2]
[310178405,1704390649009,-500.0,0.0003315,2]
[310178406,1704390649019,-500.0,0.0003315,2]
[310178407,1704390649029,-500.0,0.0003315,2]
[310178408,1704390649039,-500.0,0.0003315,2]
[310178409,1704390649049,-500.0,0.0003315,2]
[310178410,1704390649058,-434.29050953,0.0003315,2]
[310178411,1704390649068,-500.0,0.0003315,2]
[310178412,1704390649078,-500.0,0.0003315,2]
[310178413,1704390649088,-500.0,0.0003315,2]
[310178414,1704390649097,-500.0,0.0003315,2]
[310178415,1704390649108,-500.0,0.0003315,2]
[310178416,1704390649117,-500.0,0.0003315,2]
[310178417,1704390649130,-500.0,0.0003315,2]
[310178418,1704390649142,-500.0,0.0003315,2]
[310178419,1704390649156,-500.0,0.0003315,2]
[310178420,1704390649165,-500.0,0.0003315,2]
[310178421,1704390649175,-500.0,0.0003315,2]
[310178422,1704390649185,-511.06456663,0.0003315,2]
[310178423,1704390649194,-500.0,0.0003315,2]
[310178424,1704390649203,-500.0,0.0003315,2]
[310178425,1704390649213,-347.561108,0.0003315,2]
[310178426,1704390649222,-500.0,0.0003315,2]
[310178427,1704390649232,-500.0,0.0003315,2]
[310178428,1704390649242,-500.0,0.0003315,2]
[310178429,1704390649252,-500.0,0.0003315,2]
[310178430,1704390649262,-500.0,0.0003315,2]
[310178431,1704390649271,-500.0,0.0003315,2]
[310178432,1704390649281,-500.0,0.0003315,2]
[310178433,1704390649291,-500.0,0.0003315,2]
[310178434,1704390649301,-500.0,0.0003315,2]
[310178435,1704390649311,-509.52089703,0.0003315,2]
[310178436,1704390649320,-500.0,0.0003315,2]
[310178437,1704390649330,-552.10954541,0.0003315,2]
[310178438,1704390649341,-500.0,0.0003315,2]
[310178439,1704390649350,-500.0,0.0003315,2]
[310178440,1704390649360,-500.0,0.0003315,2]
[310178441,1704390649371,-584.15,0.0003315,2]
[310178442,1704390649381,-500.0,0.0003315,2]
[310178443,1704390649390,-521.08,0.0003315,2]
[310178444,1704390649400,-528.37279312,0.0003315,2]
[310178445,1704390649412,-500.0,0.0003315,2]
[310178446,1704390649422,-500.0,0.0003315,2]
[310178447,1704390649431,-500.0,0.0003315,2]
[310178448,1704390649441,-500.0,0.0003315,2]
[310178449,1704390649451,-356.75,0.0003315,2]
[310178450,1704390649461,-519.69987234,0.0003315,2]
[310178451,1704390649474,-500.0,0.0003315,2]
[310178452,1704390649485,-500.0,0.0003315,2]
[310178453,1704390649495,-500.0,0.0003315,2]
[310178454,1704390649506,-579.94,0.0003315,2]
[310178455,1704390649516,-500.0,0.0003315,2]
[310178456,1704390649526,-500.0,0.0003315,2]
[310178457,1704390649537,-500.0,0.0003315,2]
[310178458,1704390649549,-500.0,0.0003315,2]
[310178459,1704390649561,-500.0,0.0003315,2]
[310178460,1704390649571,-500.0,0.0003315,2]
[310178461,1704390649581,-500.0,0.0003315,2]
[310178462,1704390649591,-500.0,0.0003315,2]
[310178463,1704390649602,-500.0,0.0003315,2]
[310178464,1704390649612,-500.0,0.0003315,2]
[310178465,1704390649622,-500.0,0.0003315,2]
[310178466,1704390649633,-500.0,0.0003315,2]
[310178467,1704390649643,-500.0,0.0003315,2]
[310178468,1704390649655,-500.0,0.0003315,2]
[310178469,1704390649665,-451.85845444,0.0003315,2]
[310178470,1704390649675,-500.0,0.0003315,2]
[310178471,1704390649685,-500.0,0.0003315,2]
[310178472,1704390649695,-500.0,0.0003315,2]
[310178473,1704390649706,-500.0,0.0003315,2]
[310178474,1704390649716,-500.0,0.0003315,2]
[310178475,1704390649726,-300.3089972,0.0003315,2]
[310178476,1704390649736,-500.0,0.0003315,2]
[310178477,1704390649746,-500.0,0.0003315,2]
[310178478,1704390649757,-500.0,0.0003315,2]
[310178479,1704390649767,-500.0,0.0003315,2]
[310178480,1704390649778,-500.0,0.0003315,2]
[310178481,1704390649789,-500.0,0.0003315,2]
[310178482,1704390649800,-512.27856771,0.0003315,2]
[310178483,1704390649811,-500.0,0.0003315,2]
[310178484,1704390649821,-500.0,0.0003315,2]
[310178485,1704390649831,-500.0,0.0003315,2]
[310178486,1704390649841,-500.0,0.0003315,2]
[310178487,1704390649851,-500.0,0.0003315,2]
[310178488,1704390649862,-500.0,0.0003315,2]
[310178489,1704390649872,-500.0,0.0003315,2]
[310178490,1704390649882,-503.64033252,0.0003315,2]
[310178491,1704390649892,-500.0,0.0003315,2]
[310178492,1704390649902,-500.0,0.0003315,2]
[310178493,1704390649912,-500.0,0.0003315,2]
[310178494,1704390649922,-500.0,0.0003315,2]
[310178495,1704390649932,-500.0,0.0003315,2]
[310178496,1704390649942,-500.0,0.0003315,2]
[310178497,1704390649952,-500.0,0.0003315,2]
[310178498,1704390649962,-500.0,0.0003315,2]
[310178499,1704390649972,-500.0,0.0003315,2]
[310178500,1704390649981,-500.0,0.0003315,2]
[310178501,1704390649991,-500.0,0.0003315,2]
[310178502,1704390650001,-500.0,0.0003315,2]
[310178503,1704390650012,-500.0,0.0003315,2]
[310178504,1704390650022,-500.0,0.0003315,2]
[310178505,1704390650033,-500.0,0.0003315,2]
[310178506,1704390650043,-500.0,0.0003315,2]
[310178507,1704390650053,-500.0,0.0003315,2]
[310178508,1704390650063,-150.0,0.0003315,2]
[310178509,1704390650073,-500.0,0.0003315,2]
[310178510,1704390650084,-514.41077152,0.0003315,2]
[310178511,1704390650094,-500.0,0.0003315,2]
[310178512,1704390650104,-500.0,0.0003315,2]
[310178513,1704390650114,-500.0,0.0003315,2]
[310178514,1704390650126,-500.0,0.0003315,2]
[310178515,1704390650136,-539.84,0.0003315,2]
[310178516,1704390650146,-500.0,0.0003315,2]
[310178517,1704390650157,-500.0,0.0003315,2]
[310178518,1704390650166,-500.0,0.0003315,2]
[310178519,1704390650176,-500.0,0.0003315,2]
[310178520,1704390650186,-500.0,0.0003315,2]
[310178521,1704390650196,-500.0,0.0003315,2]
[310178522,1704390650206,-500.0,0.0003315,2]
[310178523,1704390650216,-527.22,0.0003315,2]
[310178524,1704390650226,-500.0,0.0003315,2]
[310178525,1704390650236,-500.0,0.0003315,2]
[310178526,1704390650246,-500.0,0.0003315,2]
[310178527,1704390650256,-500.0,0.0003315,2]
[310178528,1704390650266,-500.0,0.0003315,2]
[310178529,1704390650275,-500.0,0.0003315,2]
[310178530,1704390650286,-454.0659701,0.0003315,2]
[310178531,1704390650296,-500.0,0.0003315,2]
[310178532,1704390650306,-500.0,0.0003315,2]
[310178533,1704390650315,-500.0,0.0003315,2]
[310178534,1704390650325,-500.0,0.0003315,2]
[310178535,1704390650335,-500.0,0.0003315,2]
[310178536,1704390650345,-500.0,0.0003315,2]
[310178537,1704390650354,-342.32892425,0.0003315,2]
[310178538,1704390650364,-500.0,0.0003315,2]
[310178539,1704390650374,-520.36623557,0.0003315,2]
[310178540,1704390650384,-500.0,0.0003315,2]
[310178541,1704390650395,-674.84,0.0003315,2]
[310178542,1704390650406,-500.0,0.0003315,2]
[310178543,1704390650416,-503.61,0.0003315,2]
[310178544,1704390650426,-385.58365626,0.0003315,2]
[310178545,1704390650436,-500.0,0.0003315,2]
[310178546,1704390650446,-500.0,0.0003315,2]
[310178547,1704390650456,-500.0,0.0003315,2]
[310178548,1704390650466,-500.0,0.0003315,2]
[310178549,1704390650476,-500.0,0.0003315,2]
[310178550,1704390650486,-500.0,0.0003315,2]
[310178551,1704390650496,-529.92729964,0.0003315,2]
[310178552,1704390650506,-586.54713817,0.0003315,2]
[310178553,1704390650517,-500.0,0.0003315,2]
[310178554,1704390650528,-500.0,0.0003315,2]
[310178555,1704390650854,-500.0,0.0003315,2]
[310178556,1704390650865,-500.0,0.0003315,2]
[310178557,1704390650875,-500.0,0.0003315,2]
[310178558,1704390650885,-936.08,0.0003315,2]
[310178559,1704390650896,-500.0,0.0003315,2]
[310178560,1704390650908,-500.0,0.0003315,2]
[310178561,1704390650918,-500.0,0.0003315,2]
[310178562,1704390650929,-500.0,0.0003315,2]
[310178563,1704390650938,-500.0,0.0003315,2]
[310178564,1704390650948,-507.61122121,0.0003315,2]
[310178565,1704390650958,-500.0,0.0003315,2]
[310178566,1704390650968,-506.62250415,0.0003315,2]
[310178567,1704390650978,-500.0,0.0003315,2]
[310178568,1704390650987,-500.0,0.0003315,2]
[310178569,1704390650997,-500.0,0.0003315,2]
[310178570,1704390651007,-500.0,0.0003315,2]
[310178571,1704390651017,-500.0,0.0003315,2]
[310178572,1704390651026,-500.0,0.0003315,2]
[310178573,1704390651036,-500.0,0.0003315,2]
[310178574,1704390651046,-500.0,0.0003315,2]
[310178575,1704390651056,-500.0,0.0003315,2]
[310178576,1704390651066,-549.54258124,0.0003315,2]
[310178577,1704390651075,-500.0,0.0003315,2]
[310178578,1704390651085,-500.0,0.0003315,2]
[310178579,1704390651093,-500.0,0.0003315,2]
[310178580,1704390651103,-500.0,0.0003315,2]
[310178581,1704390651113,-500.0,0.0003315,2]
[310178582,1704390651125,-500.0,0.0003315,2]
[310178583,1704390651135,-547.89119863,0.0003315,2]
[310178584,1704390651145,-500.0,0.0003315,2]
[310178585,1704390651153,-500.0,0.0003315,2]
[310178586,1704390651165,-1562.75,0.0003315,2]
[310178587,1704390651174,-500.0,0.0003315,2]
[310178588,1704390651184,-500.0,0.0003315,2]
[310178589,1704390651193,-500.0,0.0003315,2]
[310178590,1704390651203,-500.0,0.0003315,2]
[310178591,1704390651212,-609.88,0.0003315,2]
[310178592,1704390651223,-347.76632662,0.0003315,2]
[310178593,1704390651233,-617.22,0.0003315,2]
[310178594,1704390651243,-500.0,0.0003315,2]
[310178595,1704390651253,-500.0,0.0003315,2]
[310178596,1704390651263,-672.16,0.0003315,2]
[310178597,1704390651273,-500.0,0.0003315,2]
[310178598,1704390651284,-500.0,0.0003315,2]
[310178599,1704390651293,-865.18,0.0003315,2]
[310178600,1704390651303,-500.0,0.0003315,2]
[310178601,1704390651314,-500.0,0.0003315,2]
[310178602,1704390651325,-500.0,0.0003315,2]
[310178603,1704390651335,-500.0,0.0003315,2]
[310178604,1704390651345,-715.32,0.0003315,2]
[310178605,1704390651355,-500.0,0.0003315,2]
[310178606,1704390651364,-500.0,0.0003315,2]
[310178607,1704390651374,-1738.62,0.0003315,2]
[310178608,1704390651384,-500.0,0.0003315,2]
[310178609,1704390651393,-500.0,0.0003315,2]
[310178610,1704390651403,-500.0,0.0003315,2]
[310178611,1704390651416,-1254.84,0.0003315,2]
[310178612,1704390651426,-500.0,0.0003315,2]
[310178613,1704390651436,-500.0,0.0003315,2]
[310178614,1704390651445,-500.0,0.0003315,2]
[310178615,1704390651454,-942.91,0.0003315,2]
[310178616,1704390651464,-500.0,0.0003315,2]
[310178617,1704390651473,-500.0,0.0003315,2]
[310178618,1704390651482,-1042.94,0.0003315,2]
[310178619,1704390651491,-500.0,0.0003315,2]
[310178620,1704390651500,-3818.52,0.0003315,2]
[310178621,1704390651509,-500.0,0.0003315,2]
[310178622,1704390651518,-575.83,0.0003315,2]
[310178623,1704390651528,-665.59,0.0003315,2]
[310178624,1704390651537,-1372.69,0.0003315,2]
[310178625,1704390651547,-500.0,0.0003315,2]
[310178626,1704390651558,-500.0,0.0003315,2]
[310178627,1704390651568,-16745.67,0.0003315,2]
[310178628,1704390651577,-500.0,0.0003315,2]
[310178629,1704390651587,-500.0,0.0003315,2]
[310178630,1704390651596,-721.34,0.0003315,2]
[310178631,1704390651607,-3173.06,0.0003315,2]
[310178632,1704390651616,-500.0,0.0003315,2]
[310178633,1704390651626,-1815.37,0.0003315,2]
[310178634,1704390651635,-500.0,0.0003315,2]
[310178635,1704390651645,-500.0,0.0003315,2]
[310178636,1704390651654,-500.0,0.0003315,2]
[310178637,1704390651665,-500.0,0.0003315,2]
[310178638,1704390651674,-411.09660444,0.0003315,2]
[310178639,1704390651684,-2530.3,0.0003315,2]
[310178640,1704390651693,-666.11,0.0003315,2]
[310178641,1704390651703,-500.0,0.0003315,2]
[310178642,1704390651712,-500.0,0.0003315,2]
[310178643,1704390651722,-528.71047063,0.0003315,2]
[310178644,1704390651732,-500.0,0.0003315,2]
[310178645,1704390651741,-500.0,0.0003315,2]
[310178646,1704390651751,-500.0,0.0003315,2]
[310178647,1704390651761,-1225.76,0.0003315,2]
[310178648,1704390651771,-500.0,0.0003315,2]
[310178649,1704390651780,-500.0,0.0003315,2]
[310178650,1704390651790,-1638.37,0.0003315,2]
[310178651,1704390651800,-674.49,0.0003315,2]
[310178652,1704390651810,-1957.6,0.0003315,2]
[310178653,1704390651819,-500.0,0.0003315,2]
[310178654,1704390651829,-500.0,0.0003315,2]
[310178655,1704390651839,-500.0,0.0003315,2]
[310178656,1704390651849,-500.0,0.0003315,2]
[310178657,1704390651858,-1227.69,0.0003315,2]
[310178658,1704390651868,-500.0,0.0003315,2]
[310178659,1704390651877,-500.0,0.0003315,2]
[310178660,1704390651886,-1115.6,0.0003315,2]
[310178661,1704390651896,-1502.1,0.0003315,2]
[310178662,1704390651905,-500.0,0.0003315,2]
[310178663,1704390651915,-500.0,0.0003315,2]
[310178664,1704390651925,-500.0,0.0003315,2]
[310178665,1704390651934,-601.13,0.0003315,2]
[310178666,1704390651944,-500.0,0.0003315,2]
[310178667,1704390651954,-1095.01,0.0003315,2]
[310178668,1704390651963,-500.0,0.0003315,2]
[310178669,1704390651973,-1112.32,0.0003315,2]
[310178670,1704390651982,-3635.49,0.0003315,2]
[310178671,1704390651991,-500.0,0.0003315,2]
[310178672,1704390652001,-500.0,0.0003315,2]
[310178673,1704390652010,-500.0,0.0003315,2]
[310178674,1704390652020,-170.1149716,0.0003315,2]
[310178675,1704390652030,-500.0,0.0003315,2]
[310178676,1704390652039,-683.22,0.0003315,2]
[310178677,1704390652048,-500.0,0.0003315,2]
[310178678,1704390652058,-908.85,0.0003315,2]
[310178679,1704390652067,-500.0,0.0003315,2]
[310178680,1704390652076,-1548.81,0.0003315,2]
[310178681,1704390652085,-4115.94,0.0003315,2]
[310178682,1704390652094,-628.38838975,0.0003315,2]
[310178683,1704390652103,-630.5,0.0003315,2]
[310178684,1704390652113,-464.28177061,0.0003315,2]
[310178685,1704390652124,-602.19,0.0003315,2]
[310178686,1704390652133,-500.0,0.0003315,2]
[310178687,1704390652142,-500.0,0.0003315,2]
[310178688,1704390652151,-500.0,0.0003315,2]
[310178689,1704390652163,-1531.01,0.0003315,2]
[310178690,1704390652173,-1981.93,0.0003315,2]
[310178691,1704390652182,-500.0,0.0003315,2]
[310178692,1704390652192,-1065.75,0.0003315,2]
[310178693,1704390652201,-587.25,0.0003315,2]
[310178694,1704390652210,-1067.69,0.0003315,2]
[310178695,1704390652220,-511.14,0.0003315,2]
[310178696,1704390652231,-500.0,0.0003315,2]
[310178697,1704390652240,-720.1,0.0003315,2]
[310178698,1704390652249,-500.0,0.0003315,2]
[310178699,1704390652258,-6881.5,0.0003315,2]
[310178700,1704390652267,-1768.26,0.0003315,2]
[310178701,1704390652276,-500.0,0.0003315,2]
[310178702,1704390652285,-500.0,0.0003315,2]
[310178703,1704390652294,-500.0,0.0003315,2]
[310178704,1704390652303,-2064.6,0.0003315,2]
[310178705,1704390652313,-500.0,0.0003315,2]
[310178706,1704390652322,-1086.35,0.0003315,2]
[310178707,1704390652331,-1480.81,0.0003315,2]
[310178708,1704390652340,-526.27,0.0003315,2]
[310178709,1704390652349,-500.0,0.0003315,2]
[310178710,1704390652358,-500.0,0.0003315,2]
[310178711,1704390652367,-640.610357,0.0003315,2]
[310178712,1704390652376,-819.26,0.0003315,2]
[310178713,1704390652385,-500.0,0.0003315,2]
[310178714,1704390652394,-835.91,0.0003315,2]
[310178715,1704390652403,-532.1,0.0003315,2]
[310178716,1704390652415,-500.0,0.0003315,2]
[310178717,1704390652424,-500.0,0.0003315,2]
[310178718,1704390652433,-801.4,0.0003315,2]
[310178719,1704390652442,-621.08,0.0003315,2]
[310178720,1704390652451,-507.88,0.0003315,2]
[310178721,1704390652460,-500.0,0.0003315,2]
[310178722,1704390652469,-500.0,0.0003315,2]
[310178723,1704390652478,-500.0,0.0003315,2]
[310178724,1704390652487,-593.76,0.0003315,2]
[310178725,1704390652496,-6437.46,0.0003315,2]
[310178726,1704390652505,-500.0,0.0003315,2]
[310178727,1704390652514,-513.36789375,0.0003315,2]
[310178728,1704390652523,-500.0,0.0003315,2]
[310178729,1704390652533,-843.26,0.0003315,2]
[310178730,1704390652543,-500.0,0.0003315,2]
[310178731,1704390652552,-296.72642879,0.0003315,2]
[310178732,1704390652562,-500.0,0.0003315,2]
[310178733,1704390652572,-1704.85,0.0003315,2]
[310178734,1704390652581,-1390.54,0.0003315,2]
[310178735,1704390652591,-500.0,0.0003315,2]
[310178736,1704390652600,-500.0,0.0003315,2]
[310178737,1704390652609,-500.0,0.0003315,2]
[310178738,1704390652619,-500.0,0.0003315,2]
[310178739,1704390652629,-500.0,0.0003315,2]
[310178740,1704390652639,-589.64,0.0003315,2]
[310178741,1704390652648,-500.0,0.0003315,2]
[310178742,1704390652658,-500.0,0.0003315,2]
[310178743,1704390652667,-500.0,0.0003315,2]
[310178744,1704390652677,-500.0,0.0003315,2]
[310178745,1704390652686,-500.0,0.0003315,2]
[310178746,1704390652696,-2804.91,0.0003315,2]
[310178747,1704390652705,-500.0,0.0003315,2]
[310178748,1704390652715,-500.0,0.0003315,2]
[310178749,1704390652724,-500.0,0.0003315,2]
[310178750,1704390652734,-500.0,0.0003315,2]
[310178751,1704390652743,-1132.74,0.0003315,2]
[310178752,1704390652753,-525.49342724,0.0003315,2]
[310178753,1704390652762,-500.0,0.0003315,2]
[310178754,1704390652772,-1027.11,0.0003315,2]
[310178755,1704390652782,-500.0,0.0003315,2]
[310178756,1704390652791,-3550.71,0.0003315,2]
[310178757,1704390652801,-500.0,0.0003315,2]
[310178758,1704390652810,-500.0,0.0003315,2]
[310178759,1704390652820,-500.0,0.0003315,2]
[310178760,1704390652829,-500.0,0.0003315,2]
[310178761,1704390652839,-500.0,0.0003315,2]
[310178762,1704390652848,-500.0,0.0003315,2]
[310178763,1704390652858,-500.0,0.0003315,2]
[310178764,1704390652867,-500.0,0.0003315,2]
[310178765,1704390652877,-1883.66,0.0003315,2]
[310178766,1704390652886,-1301.67,0.0003315,2]
[310178767,1704390652896,-569.76,0.0003315,2]
[310178768,1704390652905,-173.08876154,0.0003315,2]
[310178769,1704390652916,-980.49,0.0003315,2]
[310178770,1704390652925,-500.0,0.0003315,2]
[310178771,1704390652935,-500.0,0.0003315,2]
[310178772,1704390652944,-1800.67,0.0003315,2]
[310178773,1704390652953,-500.0,0.0003315,2]
[310178774,1704390652963,-1779.82,0.0003315,2]
[310178775,1704390652972,-2066.07,0.0003315,2]
[310178776,1704390652982,-500.0,0.0003315,2]
[310178777,1704390652991,-404.53209753,0.0003315,2]
[310178778,1704390653001,-500.0,0.0003315,2]
[310178779,1704390653010,-500.0,0.0003315,2]
[310178780,1704390653019,-933.35,0.0003315,2]
[310178781,1704390653028,-500.0,0.0003315,2]
[310178782,1704390653037,-1036.48,0.0003315,2]
[310178783,1704390653047,-796.42,0.0003315,2]
[310178784,1704390653056,-500.0,0.0003315,2]
[310178785,1704390653065,-526.57272264,0.0003315,2]
[310178786,1704390653075,-500.0,0.0003315,2]
[310178787,1704390653084,-859.77,0.0003315,2]
[310178788,1704390653093,-500.0,0.0003315,2]
[310178789,1704390653103,-500.0,0.0003315,2]
[310178790,1704390653168,-500.0,0.0003315,2]
[310178791,1704390653180,-3208.71,0.0003315,2]
[310178792,1704390653189,-500.0,0.0003315,2]
[310178793,1704390653198,-500.0,0.0003315,2]
[310178794,1704390653207,-211.66179881,0.0003315,2]
[310178795,1704390653217,-885.63,0.0003315,2]
[310178796,1704390653226,-500.0,0.0003315,2]
[310178797,1704390653235,-725.61,0.0003315,2]
[310178798,1704390653245,-4028.33,0.0003315,2]
[310178799,1704390653254,-500.0,0.0003315,2]
[310178800,1704390653262,-500.0,0.0003315,2]
[310178801,1704390653271,-947.57,0.0003315,2]
[310178802,1704390653280,-711.27,0.0003315,2]
[310178803,1704390653289,-645.27,0.0003315,2]
[310178804,1704390653297,-500.0,0.0003315,2]
[310178805,1704390653306,-500.0,0.0003315,2]
[310178806,1704390653315,-1162.29,0.0003315,2]
[310178807,1704390653324,-1792.09,0.0003315,2]
[310178808,1704390653333,-500.0,0.0003315,2]
[310178809,1704390653342,-500.0,0.0003315,2]
[310178810,1704390653350,-500.0,0.0003315,2]
[310178811,1704390653359,-3077.15,0.0003315,2]
[310178812,1704390653368,-500.0,0.0003315,2]
[310178813,1704390653377,-500.0,0.0003315,2]
[310178814,1704390653387,-500.0,0.0003315,2]
[310178815,1704390653396,-1099.16,0.0003315,2]
[310178816,1704390653405,-500.0,0.0003315,2]
[310178817,1704390653416,-500.0,0.0003315,2]
[310178818,1704390653424,-500.0,0.0003315,2]
[310178819,1704390653433,-500.0,0.0003315,2]
[310178820,1704390653442,-360.63742863,0.00033212,2]
[310178821,1704390653451,-150.0,0.00033229,2]
[310178822,1704390653460,-1500.0,0.0003327,2]
[310178823,1704390653470,-4372.51596475,0.00033274,5]
[310178824,1704390653478,-150.0,0.000333,2]
[310178825,1704390653488,-150.0,0.000333,2]
[310178826,1704390653498,-487.2365788,0.000333,2]
[310178827,1704390653507,-222.41,0.00033309,2]
[310178828,1704390653516,-174.59180417,0.00033324,5]
[310178829,1704390653526,-179.95380034,0.00033324,2]
[310178830,1704390653535,-500.0,0.00033383,2]
[310178831,1704390653545,-192.04129083,0.00033384,7]
[310178832,1704390653555,-154.26204967,0.00033384,7]
[310178833,1704390653564,-258.20906042,0.00033384,7]
[310178834,1704390653573,-351.3541325,0.00033423,4]
[310178835,1704390653583,-500.0,0.00033423,2]
[310178836,1704390653592,-500.0,0.00033423,2]
[310178837,1704390653601,-500.0,0.00033423,2]
[310178838,1704390653610,-1207.47,0.00033423,2]
[310178839,1704390653619,-2681.4,0.00033423,2]
[310178840,1704390653628,-500.0,0.00033424,2]
[310178841,1704390653637,-500.0,0.00033424,2]
[310178842,1704390653646,-480.19,0.00033424,2]
[310178843,1704390653655,-500.0,0.00033424,2]
[310178844,1704390653665,-500.0,0.00033424,2]
[310178845,1704390653674,-500.0,0.00033424,2]
[310178846,1704390653683,-586.23664856,0.00033424,2]
[310178847,1704390653692,-500.0,0.00033424,2]
[310178848,1704390653701,-340.7246023,0.00033424,2]
[310178849,1704390653711,-500.0,0.00033424,2]
[310178850,1704390653719,-182.71772264,0.00033424,2]
[310178851,1704390653728,-500.0,0.00033424,2]
[310178852,1704390653737,-500.0,0.00033424,2]
[310178853,1704390653747,-500.0,0.00033424,2]
[310178854,1704390653756,-500.0,0.00033424,2]
[310178855,1704390653765,-500.0,0.00033424,2]
[310178856,1704390653774,-500.0,0.00033424,2]
[310178857,1704390653783,-500.0,0.00033424,2]
[310178858,1704390653793,-500.0,0.00033424,2]
[310178859,1704390653803,-500.0,0.00033424,2]
[310178860,1704390653811,-500.0,0.00033424,2]
[310178861,1704390653820,-500.0,0.00033424,2]
[310178862,1704390653829,-500.0,0.00033424,2]
[310178863,1704390653837,-500.0,0.00033424,2]
[310178864,1704390653846,-500.0,0.00033424,2]
[310178865,1704390653855,-500.0,0.00033424,2]
[310178866,1704390653864,-500.0,0.00033424,2]
[310178867,1704390653873,-500.0,0.00033424,2]
[310178868,1704390653881,-500.0,0.00033424,2]
[310178869,1704390653891,-500.0,0.00033424,2]
[310178870,1704390653900,-529.9,0.00033424,2]
[310178871,1704390653910,-500.0,0.00033424,2]
[310178872,1704390653919,-500.0,0.00033424,2]
[310178873,1704390653928,-591.73,0.00033424,2]
[310178874,1704390653938,-500.0,0.00033424,2]
[310178875,1704390653948,-511.73005645,0.00033424,2]
[310178876,1704390653957,-500.0,0.00033424,2]
[310178877,1704390653967,-551.81055389,0.00033424,2]
[310178878,1704390653976,-500.0,0.00033424,2]
[310178879,1704390653985,-500.0,0.00033424,2]
[310178880,1704390653995,-500.0,0.00033424,2]
[310178881,1704390654004,-500.0,0.00033424,2]
[310178882,1704390654013,-500.0,0.00033424,2]
[310178883,1704390654022,-500.0,0.00033424,2]
[310178884,1704390654030,-500.0,0.00033424,2]
[310178885,1704390654039,-470.39801607,0.00033424,2]
[310178886,1704390654048,-500.0,0.00033424,2]
[310178887,1704390654058,-509.26661758,0.00033424,2]
[310178888,1704390654067,-500.0,0.00033424,2]
[310178889,1704390654076,-500.0,0.00033424,2]
[310178890,1704390654086,-500.0,0.00033424,2]
[310178891,1704390654096,-500.0,0.00033424,2]
[310178892,1704390654105,-500.0,0.00033424,2]
[310178893,1704390654114,-500.0,0.00033424,2]
[310178894,1704390654124,-500.0,0.00033424,2]
[310178895,1704390654133,-500.0,0.00033424,2]
[310178896,1704390654142,-500.0,0.00033424,2]
[310178897,1704390654151,-500.0,0.00033424,2]
[310178898,1704390654161,-500.0,0.00033424,2]